bitfinex-derivatives/quotes_BTCF0:USTF0_20250318
["timestamp","ask_amount","ask_price","bid_price","bid_amount"]
[1742320307158,0.3047205,81662.0,81661.0,0.1797]
[1742320307655,0.3057205,81662.0,81661.0,0.1797]
[1742320308362,0.3047205,81662.0,81661.0,0.1807]
[1742320308560,0.4285205,81662.0,81661.0,1e-07]
[1742320308754,0.1224945,81651.0,81650.0,0.00018366]
[1742320308957,0.122514,81638.0,81637.0,0.88956]
[1742320309158,0.121514,81638.0,81637.0,0.88956]
[1742320309463,0.243714,81638.0,81637.0,1.0120755]
[1742320309658,0.242714,81638.0,81637.0,0.88956]
[1742320310062,0.179514,81638.0,81637.0,1.1743077]
[1742320310663,0.179514,81638.0,81637.0,1.18372406]
[1742320312248,0.1225096,81643.0,81642.0,0.1225065]
[1742320313062,0.1225096,81643.0,81642.0,0.2401065]
[1742320313248,0.1807054,81645.0,81644.0,0.122505]
[1742320313454,0.1225054,81645.0,81644.0,0.122505]
[1742320313654,0.1225054,81645.0,81644.0,0.296905]
[1742320315359,0.1225054,81645.0,81644.0,0.298905]
[1742320315563,0.1817054,81645.0,81644.0,0.298905]
[1742320315960,0.1817054,81645.0,81644.0,0.300905]
[1742320316471,0.1817054,81645.0,81644.0,0.301905]
[1742320318767,0.00018366,81646.0,81645.0,0.1225035]
[1742320318962,0.0612448,81655.0,81654.0,0.12249]
[1742320319271,0.1837433,81652.0,81651.0,0.0612472]
[1742320319773,0.1224945,81651.0,81650.0,0.1811951]
[1742320320065,0.2392945,81651.0,81650.0,0.1811951]
[1742320320768,0.2392945,81651.0,81650.0,0.181196]
[1742320321868,0.2382945,81651.0,81650.0,0.181196]
[1742320323162,0.2382945,81651.0,81650.0,0.182196]
[1742320323366,0.1808945,81651.0,81650.0,0.183196]
[1742320323769,0.0564,81654.0,81653.0,0.1224915]
[1742320323955,0.0613,81658.0,81657.0,0.1224855]
[1742320324158,0.183784,81658.0,81657.0,0.1224855]
[1742320324356,0.240184,81658.0,81657.0,0.1224855]
[1742320324563,0.240184,81658.0,81657.0,0.1830855]
[1742320324856,0.0613,81658.0,81657.0,0.1830855]
[1742320325066,0.0613,81658.0,81657.0,0.5438855]
[1742320325265,0.00018366,81659.0,81658.0,0.122484]
[1742320325657,0.00018366,81659.0,81658.0,0.182784]
[1742320326571,0.00018366,81659.0,81658.0,0.184784]
[1742320327161,0.1224673,81670.0,81669.0,0.0612337]
[1742320327457,0.0559,81670.0,81669.0,0.0612337]
[1742320327656,0.1224491,81683.0,81682.0,0.1224435]
[1742320327866,0.1224491,81683.0,81682.0,0.41432053]
[1742320328073,0.1224491,81683.0,81682.0,0.45094687]
[1742320328271,0.0583,81684.0,81683.0,0.05352329]
[1742320328472,0.12190126,81691.0,81690.0,0.122436]
[1742320328473,0.00018366,81691.0,81690.0,0.122436]
[1742320328667,0.00018366,81691.0,81690.0,0.483236]
[1742320329462,0.12261816,81691.0,81690.0,0.483236]
[1742320329662,0.18071816,81691.0,81690.0,0.483236]
[1742320329871,0.05828366,81691.0,81690.0,0.483236]
[1742320330069,0.00018366,81691.0,81690.0,0.483236]
[1742320332170,0.12261816,81691.0,81690.0,0.483236]
[1742320332674,0.122439,81688.0,81687.0,1.01352]
[1742320332872,0.122439,81688.0,81687.0,1.1359604]
[1742320333173,0.241439,81688.0,81687.0,1.1359604]
[1742320334180,0.119,81688.0,81670.0,0.12563374]
[1742320334377,0.122457,81676.0,81668.0,0.88952]
[1742320334671,0.122457,81676.0,81672.0,0.1224626]
[1742320334866,0.296557,81676.0,81675.0,0.45246928]
[1742320335265,0.657357,81676.0,81675.0,0.03656928]
[1742320335467,0.122484,81659.0,81658.0,0.0612418]
[1742320335870,0.122484,81659.0,81658.0,0.27952833]
[1742320336277,0.239684,81659.0,81658.0,0.27952833]
[1742320336984,0.239684,81659.0,81658.0,0.28152833]
[1742320337178,0.239684,81659.0,81658.0,0.28352833]
[1742320337880,0.1172,81659.0,81658.0,0.28352833]
[1742320338077,0.2396825,81659.0,81658.0,0.28352833]
[1742320338567,0.2396825,81659.0,81658.0,0.29061672]
[1742320338768,0.2396825,81659.0,81658.0,0.29161672]
[1742320339178,0.061234,81669.0,81664.0,0.1837087]
[1742320339483,0.119436,81666.0,81665.0,0.2413087]
[1742320340076,0.1224618,81673.0,81666.0,0.122472]
[1742320340262,0.0582,81674.0,81666.0,0.122472]
[1742320340463,0.0576,81675.0,81674.0,0.12246]
[1742320340669,0.0576,81675.0,81674.0,0.60702]
[1742320340974,0.0576,81675.0,81674.0,0.66732]
[1742320341175,0.1800585,81675.0,81674.0,0.66732]
[1742320341371,0.1800585,81675.0,81674.0,0.48456]
[1742320341679,0.2361585,81675.0,81674.0,0.48456]
[1742320342077,0.2361585,81675.0,81674.0,0.12376]
[1742320342281,0.122469,81668.0,81667.0,0.0603]
[1742320342471,0.122469,81668.0,81664.0,0.24939374]
[1742320342671,0.061239,81663.0,81660.0,0.0603]
[1742320342984,0.122481,81660.0,81659.0,0.4159]
[1742320343284,0.122481,81660.0,81659.0,0.4728]
[1742320343478,0.234481,81660.0,81659.0,0.5327]
[1742320343875,0.234481,81660.0,81659.0,0.4159]
[1742320344069,0.1224825,81659.0,81658.0,0.04629622]
[1742320344380,0.1214855,81657.0,81656.0,0.3608]
[1742320344566,0.1224945,81651.0,81650.0,0.88970366]
[1742320345284,0.2336945,81651.0,81650.0,1.01219966]
[1742320345477,0.2326945,81651.0,81650.0,1.01219966]
[1742320345984,0.2326945,81651.0,81650.0,1.05017252]
[1742320347071,0.2336945,81651.0,81650.0,1.05017252]
[1742320347275,0.2336945,81651.0,81650.0,1.16947252]
[1742320347689,0.0573,81662.0,81650.0,1.05624304]
[1742320347983,0.177387,81656.0,81655.0,0.1224885]
[1742320348167,0.0595,81661.0,81656.0,0.122487]
[1742320348367,0.0612373,81665.0,81664.0,0.122475]
[1742320348572,0.122481,81661.0,81660.0,0.12248]
[1742320348772,0.1837252,81659.0,81658.0,0.1224834]
[1742320348966,0.1837252,81659.0,81658.0,0.2403834]
[1742320349477,0.2982252,81659.0,81658.0,0.2403834]
[1742320349978,0.2982252,81659.0,81658.0,0.2413834]
[1742320350682,0.2982252,81659.0,81658.0,0.2423834]
[1742320350879,0.0612412,81659.0,81658.0,0.2423834]
[1742320351281,0.1837178,81663.0,81662.0,0.122478]
[1742320351784,0.1837178,81663.0,81662.0,0.240878]
[1742320352378,0.1837178,81663.0,81662.0,0.1184]
[1742320352695,0.1837178,81663.0,81662.0,0.601678]
[1742320353071,0.1837178,81663.0,81662.0,0.3608]
[1742320353273,0.1224825,81659.0,81658.0,0.001]
[1742320353477,0.1224945,81651.0,81645.0,0.0575]
[1742320353682,0.1224945,81651.0,81646.0,0.1801016]
[1742320353879,0.2426945,81651.0,81646.0,0.3026027]
[1742320354086,0.2426945,81651.0,81647.0,0.1225003]
[1742320354393,0.2416945,81651.0,81643.0,0.12376]
[1742320354691,0.2416945,81651.0,81644.0,0.5384049]
[1742320354892,0.2416945,81651.0,81644.0,0.4159]
[1742320355185,0.2416945,81651.0,81648.0,0.1224983]
[1742320355373,0.2416945,81651.0,81650.0,0.04742304]
[1742320355578,0.6024945,81651.0,81650.0,0.03815652]
[1742320355988,0.7272545,81651.0,81650.0,0.00018366]
[1742320356187,0.12252,81634.0,81620.0,0.66407424]
[1742320356386,0.122538,81622.0,81621.0,0.0599]
[1742320356691,0.122538,81622.0,81621.0,0.19183893]
[1742320357082,0.240938,81622.0,81621.0,0.19183893]
[1742320357280,0.240938,81622.0,81621.0,0.25183893]
[1742320357481,0.240938,81622.0,81621.0,0.25583893]
[1742320358692,0.240938,81622.0,81621.0,0.13329943]
[1742320358889,0.240938,81622.0,81621.0,0.12929943]
[1742320359099,0.240938,81622.0,81621.0,0.25183893]
[1742320359283,0.240938,81622.0,81621.0,0.25283893]
[1742320360193,0.240938,81622.0,81621.0,0.01039943]
[1742320360896,0.240938,81622.0,81614.0,0.1225495]
[1742320360897,0.12255,81614.0,81613.0,8e-08]
[1742320361083,0.58456,81614.0,81600.0,0.1]
[1742320361288,0.1225695,81601.0,81600.0,0.1]
[1742320361490,0.6071295,81601.0,81600.0,0.1]
[1742320361797,0.1225861,81590.0,81589.0,0.00936449]
[1742320362093,0.1225861,81590.0,81588.0,0.0551]
[1742320362094,0.1225876,81589.0,81588.0,0.0551]
[1742320362305,0.1821876,81589.0,81588.0,0.0551]
[1742320362488,0.061296,81587.0,81583.0,0.0549]
[1742320362687,0.061296,81587.0,81583.0,0.11]
[1742320362688,0.1225951,81584.0,81583.0,0.11]
[1742320364190,0.1225951,81584.0,81583.0,0.11905924]
[1742320364389,0.1225951,81584.0,81583.0,0.11]
[1742320364590,0.001,81590.0,81583.0,0.16530886]
[1742320364790,0.1235861,81590.0,81589.0,0.3608]
[1742320365101,0.1225861,81590.0,81589.0,0.3608]
[1742320366692,0.1235861,81590.0,81589.0,0.3608]
[1742320367692,0.1245861,81590.0,81589.0,0.3608]
[1742320368201,0.1235861,81590.0,81589.0,0.3608]
[1742320368403,0.1225861,81590.0,81589.0,0.3608]
[1742320369096,0.1235861,81590.0,81589.0,0.3608]
[1742320369498,0.1235861,81590.0,81583.0,0.28910886]
[1742320369499,0.1225951,81584.0,81583.0,1.01070886]
[1742320369695,0.1225951,81584.0,81583.0,1.13330546]
[1742320369891,0.1225899,81588.0,81585.0,0.2451862]
[1742320370105,0.1225907,81587.0,81586.0,0.1099]
[1742320371104,0.001,81590.0,81586.0,0.1099]
[1742320371304,0.00018378,81598.0,81586.0,0.1099]
[1742320371612,0.12258,81594.0,81593.0,0.3608]
[1742320371794,0.12258,81594.0,81593.0,0.4846]
[1742320371994,0.23718,81594.0,81593.0,0.4846]
[1742320372797,0.23818,81594.0,81593.0,0.4846]
[1742320373403,0.23718,81594.0,81593.0,0.4846]
[1742320373703,0.23918,81594.0,81593.0,0.4846]
[1742320374298,0.24118,81594.0,81593.0,0.4846]
[1742320374903,0.24018,81594.0,81593.0,0.4846]
[1742320376197,0.23918,81594.0,81593.0,0.4846]
[1742320377694,0.23818,81594.0,81593.0,0.4846]
[1742320378308,0.23918,81594.0,81593.0,0.4846]
[1742320380807,0.23918,81594.0,81593.0,0.3608]
[1742320381307,0.23818,81594.0,81593.0,0.3608]
[1742320381500,0.23918,81594.0,81593.0,0.3608]
[1742320381701,0.23818,81594.0,81593.0,0.3608]
[1742320381905,0.23918,81594.0,81593.0,0.3608]
[1742320382405,0.18408,81594.0,81593.0,0.3608]
[1742320382911,0.18408,81594.0,81593.0,0.5923815]
[1742320383214,0.003,81594.0,81593.0,0.5923815]
[1742320383505,0.1225755,81597.0,81596.0,0.1838614]
[1742320383713,0.1225738,81599.0,81598.0,0.0612869]
[1742320383904,0.1225738,81599.0,81598.0,0.9516069]
[1742320384100,0.1838559,81602.0,81601.0,0.1225695]
[1742320384302,0.1838559,81602.0,81601.0,0.4833695]
[1742320385399,0.0632843,81602.0,81601.0,0.4833695]
[1742320385607,0.002,81602.0,81601.0,0.4833695]
[1742320386007,0.124568,81602.0,81601.0,0.4833695]
[1742320386207,0.179568,81602.0,81601.0,0.3608]
[1742320386407,0.1225725,81599.0,81598.0,0.89032]
[1742320386812,0.22688572,81599.0,81598.0,0.89032]
[1742320387005,0.1745725,81599.0,81598.0,0.89032]
[1742320387401,0.2269725,81599.0,81598.0,0.122574]
[1742320388204,0.2289725,81599.0,81598.0,0.122574]
[1742320388412,0.2289725,81599.0,81598.0,0.246374]
[1742320388609,0.1064,81599.0,81598.0,0.246374]
[1742320388910,0.2289725,81599.0,81598.0,0.247374]
[1742320389504,0.2269725,81599.0,81598.0,0.248374]
[1742320391713,0.2269725,81599.0,81598.0,0.247374]
[1742320391912,0.1838401,81608.0,81606.0,0.1838369]
[1742320392115,0.1225605,81607.0,81606.0,0.5446369]
[1742320392416,0.1225605,81607.0,81606.0,0.6684369]
[1742320393102,0.0612789,81609.0,81606.0,0.5458794]
[1742320393302,0.1838384,81609.0,81608.0,0.122559]
[1742320393504,0.061274,81616.0,81609.0,0.1225575]
[1742320393919,0.0612585,81636.0,81624.0,0.0612666]
[1742320394115,0.0612585,81636.0,81620.0,0.61023374]
[1742320394116,0.1225449,81621.0,81620.0,0.61023374]
[1742320394310,0.1838159,81621.0,81620.0,0.9679364]
[1742320394705,0.061271,81621.0,81620.0,0.9679364]
[1742320394905,0.108,81626.0,81625.0,0.1225335]
[1742320395117,0.30329377,81626.0,81625.0,0.1225335]
[1742320395320,0.18076027,81626.0,81625.0,0.1225335]
[1742320395504,0.18076027,81626.0,81625.0,0.1738335]
[1742320396121,0.171266,81626.0,81625.0,0.1738335]
[1742320396620,0.11,81626.0,81625.0,0.1738335]
[1742320397720,0.0522,81626.0,81625.0,0.1748335]
[1742320398222,0.174732,81626.0,81625.0,0.1748335]
[1742320398727,0.227332,81626.0,81625.0,0.0523]
[1742320399021,0.588132,81626.0,81625.0,0.001]
[1742320399229,0.588132,81626.0,81609.0,0.04736578]
[1742320399230,0.122544,81618.0,81609.0,0.04736578]
[1742320399519,0.607104,81618.0,81609.0,0.04736578]
[1742320399921,0.662804,81618.0,81609.0,0.04736578]
[1742320400312,0.177244,81618.0,81617.0,0.12272928]
[1742320400612,0.177244,81618.0,81617.0,0.00018378]
[1742320401712,0.174244,81618.0,81617.0,0.00018378]
[1742320402222,0.173244,81618.0,81617.0,0.00018378]
[1742320402410,0.226044,81618.0,81617.0,0.00018378]
[1742320402606,0.222044,81618.0,81617.0,0.00018378]
[1742320404213,0.226044,81618.0,81617.0,0.00018378]
[1742320404712,0.227044,81618.0,81617.0,0.00018378]
[1742320404912,0.224044,81618.0,81617.0,0.00018378]
[1742320405113,0.227044,81618.0,81617.0,0.00018378]
[1742320405521,0.227044,81618.0,81617.0,0.05288378]
[1742320405724,0.224044,81618.0,81617.0,0.05288378]
[1742320406112,0.226044,81618.0,81617.0,0.05288378]
[1742320406622,0.226044,81618.0,81617.0,0.17542928]
[1742320406817,0.226044,81618.0,81617.0,0.05288378]
[1742320407428,0.224044,81618.0,81617.0,0.05288378]
[1742320407723,0.225044,81618.0,81617.0,0.05288378]
[1742320408115,0.224044,81618.0,81617.0,0.05288378]
[1742320408515,0.114544,81618.0,81617.0,0.29918928]
[1742320408711,0.114544,81618.0,81617.0,0.40538928]
[1742320408917,0.167144,81618.0,81617.0,0.40538928]
[1742320409917,0.167144,81618.0,81617.0,0.28284378]
[1742320410515,0.221544,81618.0,81617.0,0.28384378]
[1742320411127,0.221544,81618.0,81617.0,0.28484378]
[1742320411324,0.221544,81618.0,81617.0,0.40838928]
[1742320411526,0.221544,81618.0,81617.0,0.28484378]
[1742320411724,0.221544,81618.0,81617.0,0.40738928]
[1742320412425,0.221544,81618.0,81617.0,0.23154378]
[1742320413032,0.221544,81618.0,81617.0,0.05488378]
[1742320413720,0.221544,81618.0,81617.0,0.00218378]
[1742320414327,0.223544,81618.0,81617.0,0.05168378]
[1742320414527,0.223544,81618.0,81617.0,0.17422928]
[1742320414938,0.222544,81618.0,81617.0,0.22882928]
[1742320415524,0.222544,81618.0,81617.0,0.10628378]
[1742320416424,0.222544,81618.0,81617.0,0.22882928]
[1742320416620,0.222544,81618.0,81617.0,0.05168378]
[1742320416937,0.222544,81618.0,81617.0,0.00018378]
[1742320416938,0.221544,81618.0,81617.0,0.00018378]
[1742320417332,0.221544,81618.0,81617.0,5.291e-05]
[1742320417533,0.222544,81618.0,81617.0,5.291e-05]
[1742320417724,0.222544,81618.0,81617.0,0.00105291]
[1742320418230,0.1225485,81615.0,81614.0,0.4833494]
[1742320418435,0.1225485,81615.0,81614.0,0.4115]
[1742320418631,0.2289485,81615.0,81614.0,0.53405]
[1742320418939,0.2289485,81615.0,81614.0,0.4115]
[1742320419436,0.2289485,81615.0,81614.0,0.53405]
[1742320419627,0.2289485,81615.0,81614.0,0.58765]
[1742320420036,0.2289485,81615.0,81614.0,0.4651]
[1742320420537,0.2289485,81615.0,81614.0,0.3608]
[1742320421330,0.1225515,81613.0,81612.0,0.0512]
[1742320421532,0.1225605,81607.0,81599.0,0.3608]
[1742320421737,0.4833605,81607.0,81599.0,0.3608]
[1742320421928,0.6409605,81607.0,81602.0,0.04019774]
[1742320422428,0.2801605,81607.0,81602.0,0.04019774]
[1742320422629,0.2801605,81607.0,81605.0,0.1225632]
[1742320422933,0.2801605,81607.0,81606.0,0.05138378]
[1742320423233,0.2801605,81607.0,81606.0,0.10758378]
[1742320424035,0.2821605,81607.0,81606.0,0.10758378]
[1742320424336,0.2861605,81607.0,81606.0,0.10758378]
[1742320424834,0.2821605,81607.0,81606.0,0.10758378]
[1742320425031,0.2841605,81607.0,81606.0,0.10758378]
[1742320425235,0.2841605,81607.0,81606.0,0.05138378]
[1742320427225,0.1225665,81603.0,81602.0,0.02634426]
[1742320427425,0.122571,81600.0,81599.0,0.3608]
[1742320427938,0.232571,81600.0,81599.0,0.3608]
[1742320428140,0.232571,81600.0,81599.0,0.40062965]
[1742320430242,0.233571,81600.0,81599.0,0.40062965]
[1742320430541,0.233571,81600.0,81599.0,0.45322965]
[1742320433245,0.177971,81600.0,81599.0,0.45322965]
[1742320433445,0.123571,81600.0,81599.0,0.57580215]
[1742320433634,0.123571,81600.0,81599.0,0.93660215]
[1742320434642,0.1838425,81607.0,81605.0,0.122562]
[1742320434844,0.0612778,81611.0,81610.0,0.122553]
[1742320435333,0.0612778,81611.0,81610.0,0.226553]
[1742320436137,0.0612778,81611.0,81610.0,0.229553]
[1742320436839,0.1225508,81614.0,81613.0,0.12255]
[1742320437044,0.00018378,81615.0,81614.0,0.12255]
[1742320437246,0.00018378,81615.0,81614.0,0.29737]
[1742320437645,0.12273228,81615.0,81614.0,0.29737]
[1742320437834,0.00018378,81615.0,81614.0,0.29737]
[1742320438546,0.00018378,81615.0,81614.0,0.29937]
[1742320439245,0.00018378,81615.0,81614.0,1.18961]
[1742320440143,0.18379,81631.0,81630.0,0.1225209]
[1742320440343,0.1837928,81629.0,81628.0,0.1225276]
[1742320440734,0.1837928,81629.0,81628.0,0.05356035]
[1742320440934,0.2906928,81629.0,81628.0,0.05356035]
[1742320441135,0.1681638,81629.0,81628.0,0.05356035]
[1742320441335,0.1069,81629.0,81628.0,0.05356035]
[1742320441540,0.0551,81629.0,81628.0,0.09299395]
[1742320441743,0.1776275,81629.0,81628.0,0.09299395]
[1742320441951,0.1776275,81629.0,81628.0,0.0394336]
[1742320442148,0.1776275,81629.0,81627.0,0.1225304]
[1742320442149,0.183795,81628.0,81627.0,0.1225298]
[1742320442347,0.235595,81628.0,81627.0,0.1225298]
[1742320442545,0.1225305,81627.0,81626.0,0.3608]
[1742320442735,0.2304305,81627.0,81626.0,0.3608]
[1742320442937,0.2802305,81627.0,81626.0,0.3608]
[1742320443545,0.2802305,81627.0,81626.0,0.40057214]
[1742320445051,0.2812305,81627.0,81626.0,0.40057214]
[1742320446640,0.2822305,81627.0,81626.0,0.40057214]
[1742320447343,0.2822305,81627.0,81626.0,0.45337214]
[1742320447945,0.2802305,81627.0,81626.0,0.45337214]
[1742320448155,0.2812305,81627.0,81626.0,0.45337214]
[1742320448548,0.2802305,81627.0,81626.0,0.45337214]
[1742320448749,0.2812305,81627.0,81626.0,0.45337214]
[1742320449349,0.2822305,81627.0,81626.0,0.45337214]
[1742320450148,0.2812305,81627.0,81626.0,0.45337214]
[1742320450353,0.2822305,81627.0,81626.0,0.45337214]
[1742320451351,0.2822305,81627.0,81626.0,0.03977214]
[1742320451562,0.2822305,81627.0,81620.0,0.00018378]
[1742320451563,0.1225395,81621.0,81620.0,0.00018378]
[1742320452056,0.2286395,81621.0,81620.0,0.00018378]
[1742320452442,0.2286395,81621.0,81620.0,0.04018848]
[1742320452650,0.2286395,81621.0,81620.0,0.00018378]
[1742320453653,0.2296395,81621.0,81620.0,0.0392247]
[1742320453841,0.2296395,81621.0,81620.0,0.00018378]
[1742320454343,0.2316395,81621.0,81620.0,5.81e-05]
[1742320454647,0.2296395,81621.0,81620.0,5.81e-05]
[1742320454848,0.2306395,81621.0,81620.0,5.81e-05]
[1742320455254,0.2296395,81621.0,81620.0,5.81e-05]
[1742320455549,0.2316395,81621.0,81620.0,5.81e-05]
[1742320455754,0.2316395,81621.0,81620.0,0.03973272]
[1742320455954,0.2316395,81621.0,81620.0,1.72e-05]
[1742320456852,0.2306395,81621.0,81620.0,1.72e-05]
[1742320457073,0.2316395,81621.0,81620.0,1.72e-05]
[1742320458154,0.2316395,81621.0,81620.0,0.04013393]
[1742320459559,0.2296395,81621.0,81620.0,0.04013393]
[1742320459864,0.23777518,81621.0,81620.0,0.04013393]
[1742320461159,0.23577518,81621.0,81620.0,0.04013393]
[1742320461354,0.23777518,81621.0,81620.0,0.04013393]
[1742320461751,0.13167518,81621.0,81620.0,0.16267493]
[1742320461948,0.13167518,81621.0,81620.0,0.04013393]
[1742320462145,0.23477518,81621.0,81620.0,0.14243393]
[1742320462352,0.18357518,81621.0,81620.0,0.14243393]
[1742320462754,0.18357518,81621.0,81620.0,0.26497493]
[1742320463855,0.18257518,81621.0,81620.0,0.26597493]
[1742320464261,0.18057518,81621.0,81620.0,0.26597493]
[1742320464473,0.18057518,81621.0,81620.0,0.26697493]
[1742320464762,0.18057518,81621.0,81620.0,0.14443393]
[1742320464955,0.22887518,81621.0,81620.0,0.14443393]
[1742320465460,0.22887518,81621.0,81620.0,0.14343393]
[1742320465657,0.22887518,81621.0,81620.0,0.14443393]
[1742320465851,0.22887518,81621.0,81620.0,0.26697493]
[1742320466053,0.12867518,81621.0,81620.0,0.26597493]
[1742320466362,0.12867518,81621.0,81620.0,0.14343393]
[1742320466563,0.22927518,81621.0,81620.0,0.14343393]
[1742320467162,0.22927518,81621.0,81620.0,0.14243393]
[1742320467362,0.22927518,81621.0,81620.0,0.26497493]
[1742320467554,0.18097518,81621.0,81620.0,0.26497493]
[1742320467757,0.00613568,81621.0,81620.0,0.26497493]
[1742320467970,0.1225395,81624.0,81623.0,0.1837987]
[1742320468155,0.1225395,81624.0,81623.0,0.5445987]
[1742320468771,0.1740395,81624.0,81623.0,0.5445987]
[1742320468959,0.1740395,81624.0,81623.0,0.6058661]
[1742320468960,0.122535,81624.0,81623.0,0.6058661]
[1742320469160,0.122535,81624.0,81623.0,0.4833341]
[1742320469357,0.122535,81624.0,81623.0,0.4843341]
[1742320470162,0.1225329,81626.0,81624.0,0.0612674]
[1742320470362,0.1225329,81626.0,81625.0,0.1225335]
[1742320470578,0.1225329,81626.0,81625.0,0.1721335]
[1742320470774,0.1740329,81626.0,81625.0,0.2690335]
[1742320471269,0.5866329,81626.0,81625.0,0.0969]
[1742320471475,0.1225335,81625.0,81624.0,0.00911086]
[1742320471676,0.122535,81624.0,81623.0,0.001]
[1742320471869,0.122538,81622.0,81621.0,0.01673602]
[1742320472091,0.121538,81622.0,81621.0,0.01673602]
[1742320472270,0.223738,81622.0,81621.0,0.01673602]
[1742320473472,0.1225395,81621.0,81620.0,0.04013393]
[1742320473667,0.1225395,81621.0,81620.0,0.01136997]
[1742320473979,0.1225455,81617.0,81616.0,0.3608]
[1742320474474,0.2213455,81617.0,81616.0,0.40090527]
[1742320475066,0.2213455,81617.0,81616.0,0.52345227]
[1742320475464,0.2233455,81617.0,81616.0,0.52345227]
[1742320475670,0.2253455,81617.0,81616.0,0.52345227]
[1742320475871,0.2233455,81617.0,81616.0,0.57415227]
[1742320476072,0.2243455,81617.0,81616.0,0.57415227]
[1742320476366,0.0534,81617.0,81616.0,0.57415227]
[1742320476575,0.1749455,81617.0,81616.0,0.57415227]
[1742320477568,0.2267455,81617.0,81616.0,0.57415227]
[1742320477768,0.2267455,81617.0,81616.0,0.21335227]
[1742320478172,0.2257455,81617.0,81616.0,0.21335227]
[1742320478387,0.2267455,81617.0,81616.0,0.21335227]
[1742320478688,0.2257455,81617.0,81616.0,0.21335227]
[1742320478984,0.2247455,81617.0,81616.0,0.21335227]
[1742320479479,0.2247455,81617.0,81616.0,0.21435227]
[1742320479786,0.2247455,81617.0,81616.0,0.57515227]
[1742320481189,0.1729455,81617.0,81616.0,0.45260527]
[1742320481487,0.2237455,81617.0,81616.0,0.45260527]
[1742320481984,0.2237455,81617.0,81616.0,0.40190527]
[1742320482375,0.2237455,81617.0,81616.0,0.33292675]
[1742320482572,0.2237455,81617.0,81616.0,0.38213794]
[1742320483082,0.2237455,81617.0,81616.0,0.38113794]
[1742320483584,0.2247455,81617.0,81616.0,0.04921119]
[1742320483789,0.1225485,81615.0,81614.0,0.89024]
[1742320484085,0.1225485,81615.0,81614.0,1.01279]
[1742320484283,0.2255485,81615.0,81614.0,1.01279]
[1742320484485,0.1752485,81615.0,81614.0,1.16228785]
[1742320485576,0.1752485,81615.0,81614.0,1.21028785]
[1742320485783,0.1752485,81615.0,81614.0,0.32004785]
[1742320486389,0.1752485,81615.0,81614.0,0.32104785]
[1742320486694,0.1752485,81615.0,81614.0,0.32204785]
[1742320487702,0.2245485,81615.0,81614.0,0.32204785]
[1742320488095,0.2245485,81615.0,81614.0,0.32104785]
[1742320488295,0.2245485,81615.0,81614.0,0.32204785]
[1742320488595,0.2245485,81615.0,81614.0,0.32104785]
[1742320488798,0.2245485,81615.0,81614.0,0.32204785]
[1742320489195,0.2245485,81615.0,81614.0,0.19949785]
[1742320489497,0.2245485,81615.0,81614.0,0.19749785]
[1742320490095,0.2245485,81615.0,81614.0,0.19849785]
[1742320490604,0.2245485,81615.0,81614.0,0.14969785]
[1742320490807,0.2245485,81615.0,81614.0,0.09899785]
[1742320491200,0.2245485,81615.0,81614.0,0.05099785]
[1742320491702,0.2245485,81615.0,81614.0,0.04999785]
[1742320492010,0.1225515,81613.0,81612.0,0.17475]
[1742320492210,0.1225515,81613.0,81612.0,0.12255]
[1742320492396,0.122559,81608.0,81606.0,0.4129]
[1742320492600,0.2208605,81607.0,81606.0,0.3608]
[1742320492905,0.2208605,81607.0,81606.0,0.04872018]
[1742320493106,0.122562,81606.0,81605.0,0.89012]
[1742320493506,0.221662,81606.0,81605.0,0.89012]
[1742320493904,0.221662,81606.0,81605.0,0.94061255]
[1742320494510,0.219662,81606.0,81605.0,0.94061255]
[1742320494713,0.219662,81606.0,81605.0,0.05049255]
[1742320494897,0.1225695,81601.0,81600.0,0.0521]
[1742320495100,0.1205785,81595.0,81594.0,0.1761]
[1742320495510,0.1714785,81595.0,81594.0,0.29868]
[1742320495707,0.1704785,81595.0,81594.0,0.22535289]
[1742320496210,0.1704785,81595.0,81594.0,0.22935289]
[1742320496418,0.2212785,81595.0,81594.0,0.22935289]
[1742320497200,0.2192785,81595.0,81594.0,0.10575289]
[1742320497517,0.2192785,81595.0,81594.0,0.05325289]
[1742320497518,0.5800785,81595.0,81594.0,0.05325289]
[1742320497709,0.5800785,81595.0,81594.0,9e-08]
[1742320498105,0.1225845,81591.0,81590.0,0.05079078]
[1742320498306,0.1225951,81584.0,81570.0,0.54774144]
[1742320498525,0.1226056,81577.0,81576.0,0.1236]
[1742320498912,0.2196056,81577.0,81576.0,0.1236]
[1742320499416,0.2196056,81577.0,81576.0,0.2963071]
[1742320499614,0.2196056,81577.0,81576.0,0.34550927]
[1742320499918,0.2196056,81577.0,81576.0,0.22290217]
[1742320500706,0.2196056,81577.0,81576.0,0.22490217]
[1742320500903,0.5804056,81577.0,81576.0,0.0604099]
[1742320501219,0.5804056,81577.0,81549.0,0.42618786]
[1742320501220,0.4221151,81561.0,81549.0,0.08271266]
[1742320501406,0.4221151,81561.0,81521.0,0.80425251]
[1742320501407,0.1226612,81540.0,81522.0,0.0508]
[1742320501608,0.2462612,81540.0,81534.0,0.55075131]
[1742320501812,0.1226612,81540.0,81537.0,0.0613322]
[1742320502110,0.1226612,81540.0,81539.0,0.72886947]
[1742320502111,0.0525,81540.0,81539.0,0.72886947]
[1742320502314,0.1751612,81540.0,81539.0,0.72886947]
[1742320502709,0.1226612,81540.0,81539.0,0.60620677]
[1742320503107,0.6070612,81540.0,81539.0,0.60620677]
[1742320503311,0.6070612,81540.0,81539.0,0.60720677]
[1742320503509,0.6070612,81540.0,81539.0,0.52807387]
[1742320503714,0.1226687,81535.0,81534.0,0.25617222]
[1742320503917,0.4834687,81535.0,81534.0,0.25617222]
[1742320504226,0.1226763,81530.0,81529.0,1e-08]
[1742320504520,0.6071163,81530.0,81529.0,1e-08]
[1742320505125,0.0613433,81524.0,81517.0,0.00941932]
[1742320505421,0.1226973,81516.0,81515.0,0.1226982]
[1742320505724,0.1227003,81514.0,81513.0,0.1111509]
[1742320506403,0.1227003,81514.0,81513.0,0.0498]
[1742320506610,0.1227124,81506.0,81505.0,0.3608]
[1742320507114,0.1227199,81501.0,81500.0,0.2227214]
[1742320507316,0.1227199,81501.0,81500.0,0.1]
[1742320508419,0.1237199,81501.0,81500.0,0.1]
[1742320509413,0.1247199,81501.0,81500.0,0.1]
[1742320510615,0.1267199,81501.0,81500.0,0.1]
[1742320511024,0.01424773,81501.0,81477.0,0.3608]
[1742320511210,0.1227703,81468.0,81466.0,0.1227722]
[1742320511413,0.1227686,81469.0,81468.0,0.1227681]
[1742320511618,0.1841476,81472.0,81471.0,0.122763]